bitfinex/quotes_BTCUSD_20241004
["timestamp","ask_amount","ask_price","bid_price","bid_amount"]
[1728016013249,0.163218,61268.0,61265.0,0.001]
[1728016013476,0.163218,61268.0,61263.0,0.48969]
[1728016013718,0.001,61270.0,61265.0,0.24468224]
[1728016013954,0.001,61270.0,61269.0,0.163214]
[1728016014179,0.335297,61276.0,61270.0,0.16321]
[1728016014627,0.02558799,61275.0,61272.0,0.163205]
[1728016014846,0.02558799,61275.0,61274.0,0.163201]
[1728016015988,0.02558799,61275.0,61274.0,0.169201]
[1728016016442,0.02558799,61275.0,61274.0,0.16763797]
[1728016016698,0.02558799,61275.0,61274.0,0.25663797]
[1728016017159,0.02558799,61275.0,61274.0,0.26763797]
[1728016018602,0.02558799,61275.0,61274.0,0.62105744]
[1728016018829,0.000818,61288.0,61287.0,0.163166]
[1728016019627,0.000818,61288.0,61287.0,0.16707858]
[1728016021159,0.000818,61288.0,61287.0,0.18407858]
[1728016022466,0.000818,61288.0,61287.0,0.17607858]
[1728016022668,0.000818,61288.0,61287.0,0.18507858]
[1728016023143,0.02639887,61288.0,61287.0,0.18507858]
[1728016024099,0.02639887,61288.0,61287.0,0.16707858]
[1728016024266,0.02639887,61288.0,61287.0,0.18807858]
[1728016027305,0.02639887,61288.0,61287.0,0.18971658]
[1728016032675,0.000818,61288.0,61287.0,0.18971658]
[1728016034544,0.000818,61288.0,61287.0,0.02655058]
[1728016034849,0.000818,61288.0,61287.0,0.18971658]
[1728016035606,0.163982,61288.0,61287.0,0.02655058]
[1728016035826,0.263282,61288.0,61287.0,0.02655058]
[1728016036036,0.263282,61288.0,61287.0,0.022638]
[1728016036253,0.263282,61288.0,61287.0,0.02701775]
[1728016036442,0.263282,61288.0,61287.0,0.01601775]
[1728016036644,0.263282,61288.0,61287.0,0.01001775]
[1728016036890,0.02640021,61288.0,61287.0,0.17318375]
[1728016037104,0.02640021,61288.0,61287.0,0.17718375]
[1728016037269,0.000818,61288.0,61287.0,0.17718375]
[1728016038321,0.000818,61288.0,61287.0,0.25378375]
[1728016038567,0.000818,61288.0,61287.0,0.24578375]
[1728016038740,0.000818,61288.0,61287.0,0.25704675]
[1728016038972,0.000818,61288.0,61287.0,0.26404675]
[1728016039119,0.000818,61288.0,61287.0,0.25704675]
[1728016039313,0.000818,61288.0,61287.0,0.24904675]
[1728016039564,0.000818,61288.0,61287.0,0.26904675]
[1728016039745,0.000818,61288.0,61287.0,0.25904675]
[1728016039959,0.000818,61288.0,61287.0,0.24904675]
[1728016040154,0.000818,61288.0,61287.0,0.26004675]
[1728016040335,0.000818,61288.0,61287.0,0.27104675]
[1728016041636,0.02639754,61288.0,61287.0,0.27104675]
[1728016041841,0.02639754,61288.0,61287.0,0.26778375]
[1728016044572,0.11664097,61288.0,61287.0,0.26778375]
[1728016044808,0.04337204,61288.0,61287.0,0.26778375]
[1728016045943,0.04337204,61288.0,61287.0,0.02801775]
[1728016046164,0.2336048,61288.0,61287.0,0.02801775]
[1728016046420,0.2336048,61288.0,61287.0,0.19118375]
[1728016047333,0.04337204,61288.0,61287.0,0.19118375]
[1728016049495,0.04337204,61288.0,61287.0,0.19088375]
[1728016049740,0.04337204,61288.0,61287.0,0.19048375]
[1728016050227,0.04337204,61288.0,61287.0,0.19038375]
[1728016050462,0.2336048,61288.0,61287.0,0.02671775]
[1728016050683,0.20802526,61288.0,61287.0,0.02631775]
[1728016051137,0.20802526,61288.0,61287.0,0.02621775]
[1728016051364,0.20802526,61288.0,61287.0,0.18888375]
[1728016051597,0.20802526,61288.0,61287.0,0.02541775]
[1728016051816,0.20802526,61288.0,61287.0,0.02611589]
[1728016052040,0.20802526,61288.0,61287.0,0.02601589]
[1728016052288,0.20802526,61288.0,61287.0,0.02551589]
[1728016052552,0.20802526,61288.0,61287.0,0.02531589]
[1728016052793,0.20802526,61288.0,61287.0,0.02605277]
[1728016053038,0.20802526,61288.0,61287.0,0.02585277]
[1728016053272,0.28692526,61288.0,61287.0,0.02535277]
[1728016053522,0.28692526,61288.0,61287.0,0.02620035]
[1728016053523,0.54938926,61288.0,61287.0,0.02620035]
[1728016053784,0.0177925,61288.0,61287.0,0.02600035]
[1728016054024,0.0177925,61288.0,61287.0,0.184966]
[1728016054244,0.000818,61288.0,61287.0,0.18868393]
[1728016054990,0.02639814,61288.0,61287.0,0.18868393]
[1728016059962,0.000818,61288.0,61287.0,0.53123337]
[1728016060216,0.000817,61296.0,61295.0,0.339245]
[1728016060494,0.000817,61296.0,61295.0,0.50243171]
[1728016060730,0.000817,61296.0,61295.0,0.50615035]
[1728016061936,0.000817,61296.0,61295.0,0.52015035]
[1728016062165,0.000817,61296.0,61295.0,0.56869903]
[1728016062403,0.000817,61296.0,61295.0,0.52015035]
[1728016063109,0.02638989,61296.0,61295.0,0.52015035]
[1728016063361,0.02638989,61296.0,61295.0,0.53415035]
[1728016063582,0.02638989,61296.0,61295.0,0.52015035]
[1728016064060,0.02638989,61296.0,61295.0,0.50615035]
[1728016064290,0.02638989,61296.0,61295.0,0.52015035]
[1728016064748,0.02638989,61296.0,61295.0,0.50615035]
[1728016064970,0.02638989,61296.0,61295.0,0.53415035]
[1728016065192,0.02638989,61296.0,61295.0,0.52015035]
[1728016065432,0.02638989,61296.0,61295.0,0.53415035]
[1728016065667,0.02638989,61296.0,61295.0,0.52015035]
[1728016065903,0.02638989,61296.0,61295.0,0.50615035]
[1728016066128,0.02638989,61296.0,61295.0,0.52015035]
[1728016066391,0.02638989,61296.0,61295.0,0.50615035]
[1728016066620,0.02638989,61296.0,61295.0,0.52015035]
[1728016067433,0.02638989,61296.0,61295.0,0.53415035]
[1728016067909,0.02638989,61296.0,61295.0,0.52015035]
[1728016068101,0.02638989,61296.0,61295.0,0.53415035]
[1728016068335,0.02638989,61296.0,61295.0,0.43575035]
[1728016068796,0.02638989,61296.0,61295.0,0.42175035]
[1728016069293,0.02638989,61296.0,61295.0,0.27256364]
[1728016069560,0.02638989,61296.0,61295.0,0.25856364]
[1728016069561,0.000817,61296.0,61295.0,0.25856364]
[1728016069796,0.000817,61296.0,61295.0,0.27256364]
[1728016070237,0.000817,61296.0,61295.0,0.25856364]
[1728016070690,0.000817,61296.0,61295.0,0.27256364]
[1728016071151,0.000817,61296.0,61295.0,0.25856364]
[1728016071375,0.000817,61296.0,61295.0,0.27256364]
[1728016072302,0.000817,61296.0,61295.0,0.27582611]
[1728016072977,0.02639161,61296.0,61295.0,0.27256364]
[1728016075991,0.000817,61296.0,61295.0,0.27256364]
[1728016080190,0.000817,61296.0,61295.0,0.19486364]
[1728016080884,0.02639103,61296.0,61295.0,0.19486364]
[1728016081105,0.000817,61296.0,61295.0,0.19486364]
[1728016082534,0.000817,61296.0,61295.0,0.00371864]
[1728016082759,0.000817,61296.0,61295.0,0.01771864]
[1728016082981,0.000817,61296.0,61295.0,0.191145]
[1728016083210,0.000817,61296.0,61295.0,0.16680907]
[1728016083463,0.000817,61296.0,61295.0,0.17280907]
[1728016083750,0.000817,61296.0,61295.0,0.01566407]
[1728016084188,0.000817,61296.0,61295.0,0.00966407]
[1728016084418,0.163959,61296.0,61295.0,0.01566407]
[1728016084894,0.163959,61296.0,61295.0,0.006]
[1728016085127,0.18953656,61296.0,61295.0,0.012]
[1728016085361,0.36523656,61296.0,61295.0,0.01566407]
[1728016085682,0.36523656,61296.0,61295.0,0.012]
[1728016085814,0.12359456,61296.0,61295.0,0.012]
[1728016086055,0.28673656,61296.0,61295.0,0.006]
[1728016086290,0.12359456,61296.0,61295.0,0.00967461]
[1728016086514,0.12359456,61296.0,61295.0,0.00667461]
[1728016086736,0.12359456,61296.0,61295.0,0.00967461]
[1728016086973,0.28673656,61296.0,61295.0,0.00967461]
[1728016087205,0.12359456,61296.0,61295.0,0.00967461]
[1728016087658,0.28673656,61296.0,61295.0,0.00967461]
[1728016092625,0.12359456,61296.0,61295.0,0.00967461]
[1728016092858,0.28673656,61296.0,61295.0,0.00967461]
[1728016093087,0.12359456,61296.0,61295.0,0.00967461]
[1728016094033,0.098017,61296.0,61295.0,0.00967461]
[1728016094252,0.000817,61296.0,61295.0,0.00967461]
[1728016094661,0.163959,61296.0,61295.0,0.00967461]
[1728016095394,0.000817,61296.0,61295.0,0.00967461]
[1728016095634,0.000817,61296.0,61295.0,0.17281961]
[1728016096562,0.000817,61296.0,61295.0,0.24361961]
[1728016096788,0.000817,61296.0,61295.0,0.26561961]
[1728016098452,0.000817,61296.0,61295.0,0.18881961]
[1728016101910,0.02639302,61296.0,61295.0,0.18881961]
[1728016104260,0.02639302,61296.0,61295.0,0.17781961]
[1728016104488,0.02639302,61296.0,61295.0,0.16681961]
[1728016104757,0.02639302,61296.0,61295.0,0.26361961]
[1728016104989,0.02639302,61296.0,61295.0,0.25361961]
[1728016105212,0.02639302,61296.0,61295.0,0.25761961]
[1728016105436,0.02639302,61296.0,61295.0,0.27161961]
[1728016105657,0.02639302,61296.0,61295.0,0.25761961]
[1728016105898,0.02639302,61296.0,61295.0,0.27161961]
[1728016112713,0.000817,61296.0,61295.0,0.27161961]
[1728016113610,0.000817,61296.0,61295.0,0.27368235]
[1728016113833,0.000817,61296.0,61295.0,0.27488195]
[1728016115412,0.000817,61296.0,61295.0,0.27161961]
[1728016121690,0.02639128,61296.0,61295.0,0.27161961]
[1728016122162,0.02639128,61296.0,61295.0,0.19481961]
[1728016126883,0.000817,61296.0,61295.0,0.19481961]
[1728016129468,0.000817,61296.0,61295.0,0.18081961]
[1728016129684,0.000817,61296.0,61295.0,0.19081961]
[1728016129924,0.000817,61296.0,61295.0,0.17681961]
[1728016130141,0.000817,61296.0,61295.0,0.18681961]
[1728016130362,0.000817,61296.0,61295.0,0.17681961]
[1728016130658,0.000817,61296.0,61295.0,0.18681961]
[1728016131531,0.02639388,61296.0,61295.0,0.18681961]
[1728016133879,0.02639388,61296.0,61295.0,0.26231961]
[1728016134122,0.000817,61296.0,61295.0,0.26231961]
[1728016135523,0.0263926,61296.0,61295.0,0.26231961]
[1728016136903,0.000817,61296.0,61295.0,0.26231961]
[1728016139450,0.000817,61296.0,61295.0,0.24231961]
[1728016139680,0.000817,61296.0,61295.0,0.25631961]
[1728016139927,0.0263926,61296.0,61295.0,0.27031961]
[1728016140405,0.000817,61296.0,61295.0,0.25631961]
[1728016142030,0.000817,61296.0,61295.0,0.27031961]
[1728016143622,0.02639258,61296.0,61295.0,0.27031961]
[1728016146957,0.000817,61296.0,61295.0,0.27031961]
[1728016147181,0.000817,61296.0,61295.0,0.27358207]
[1728016147871,0.000817,61296.0,61295.0,0.37198207]
[1728016148103,0.000817,61296.0,61295.0,0.36871961]
[1728016150472,0.000817,61296.0,61295.0,0.37301956]
[1728016151132,0.000817,61296.0,61295.0,0.35901956]
[1728016151584,0.02639138,61296.0,61295.0,0.35901956]
[1728016152057,0.02639138,61296.0,61295.0,0.34501956]
[1728016152294,0.02639138,61296.0,61295.0,0.37301956]
[1728016156956,0.02639138,61296.0,61295.0,0.27461956]
[1728016157192,0.02639138,61296.0,61295.0,0.19481961]
[1728016157890,0.172617,61296.0,61295.0,0.19481961]
[1728016158625,0.172617,61296.0,61295.0,0.18081961]
[1728016158856,0.172617,61296.0,61295.0,0.19181961]
[1728016159068,0.172617,61296.0,61295.0,0.17781961]
[1728016159548,0.172617,61296.0,61295.0,0.18881961]
[1728016160232,0.172617,61296.0,61295.0,0.02567461]
[1728016160459,0.172617,61296.0,61295.0,0.18881961]
[1728016160677,0.172617,61296.0,61295.0,0.01467461]
[1728016160922,0.172617,61296.0,61295.0,0.02267461]
[1728016161148,0.172617,61296.0,61295.0,0.16681961]
[1728016161404,0.172617,61296.0,61295.0,0.17581961]
[1728016161636,0.172617,61296.0,61295.0,0.18181961]
[1728016161855,0.172617,61296.0,61295.0,0.16681961]
[1728016162076,0.172617,61296.0,61295.0,0.17981961]
[1728016162295,0.172617,61296.0,61295.0,0.17381961]
[1728016162526,0.12209493,61296.0,61295.0,0.16681961]
[1728016162787,0.12209493,61296.0,61295.0,0.17381961]
[1728016164131,0.12209493,61296.0,61295.0,0.18181961]
[1728016164350,0.12209493,61296.0,61295.0,0.17481961]
[1728016164621,0.12209493,61296.0,61295.0,0.16681961]
[1728016164849,0.12209493,61296.0,61295.0,0.18181961]
[1728016165072,0.12209493,61296.0,61295.0,0.17481961]
[1728016165297,0.12209493,61296.0,61295.0,0.16681961]
[1728016165747,0.12209493,61296.0,61295.0,0.18381961]
[1728016166694,0.12209493,61296.0,61295.0,0.02067461]
[1728016166931,0.28523693,61296.0,61295.0,0.02067461]
[1728016167175,0.28523693,61296.0,61295.0,0.017]
[1728016167394,0.259659,61296.0,61295.0,0.02049007]
[1728016168354,0.096517,61296.0,61295.0,0.02049007]
[1728016168592,0.38430325,61296.0,61295.0,0.02049007]
[1728016168822,0.46040325,61296.0,61295.0,0.02049007]
[1728016169117,0.46040325,61296.0,61295.0,0.017]
[1728016169569,0.46040325,61296.0,61295.0,0.02049007]
[1728016170282,0.335759,61296.0,61295.0,0.02049007]
[1728016170744,0.36133815,61296.0,61295.0,0.02049007]
[1728016174893,0.19819615,61296.0,61295.0,0.02049007]
[1728016176469,0.12209615,61296.0,61295.0,0.18363507]
[1728016177655,0.12209615,61296.0,61295.0,0.02049007]
[1728016180972,0.12209615,61296.0,61295.0,0.18363507]
[1728016181654,0.12209615,61296.0,61295.0,0.02049007]
[1728016182542,0.12209615,61296.0,61295.0,0.18363507]
[1728016182996,0.12209615,61296.0,61295.0,0.02049007]
[1728016183467,0.12209615,61296.0,61295.0,0.18363507]
[1728016183957,0.12209615,61296.0,61295.0,0.02049007]
[1728016184172,0.12209615,61296.0,61295.0,0.18363507]
[1728016187162,0.02639615,61296.0,61295.0,0.18363507]
[1728016188544,0.02639615,61296.0,61295.0,0.26233507]
[1728016188771,0.000817,61296.0,61295.0,0.26233507]
[1728016189219,0.000817,61296.0,61295.0,0.18363507]
[1728016190376,0.000817,61296.0,61295.0,0.02049007]
[1728016192996,0.02639546,61296.0,61295.0,0.02049007]
[1728016197049,0.02639546,61296.0,61295.0,0.18363507]
[1728016197981,0.02639546,61296.0,61295.0,0.02049007]
[1728016198692,0.02639546,61296.0,61295.0,0.18363507]
[1728016200516,0.02639546,61296.0,61295.0,0.02049007]
[1728016201204,0.02639546,61296.0,61295.0,0.18363507]
[1728016201430,0.02639546,61296.0,61295.0,0.02049007]
[1728016202326,0.18953746,61296.0,61295.0,0.02049007]
[1728016202565,0.31418171,61296.0,61295.0,0.02049007]
[1728016202809,0.42884658,61296.0,61295.0,0.02049007]
[1728016203046,0.52674016,61296.0,61295.0,0.02049007]
[1728016203288,0.31418171,61296.0,61295.0,0.02049007]
[1728016203513,0.43654869,61296.0,61295.0,0.02049007]
[1728016204227,0.43654869,61296.0,61295.0,0.01149007]
[1728016204228,0.41221812,61296.0,61295.0,0.01149007]
[1728016204459,0.28757387,61296.0,61295.0,0.01149007]
[1728016204701,0.28756349,61296.0,61295.0,0.00449007]
[1728016204939,0.28756349,61296.0,61295.0,0.00349007]
[1728016205393,0.18953746,61296.0,61295.0,0.00849007]
[1728016206299,0.18953746,61296.0,61295.0,0.00649007]
[1728016206524,0.18953746,61296.0,61295.0,0.00349007]
[1728016207229,0.163959,61296.0,61295.0,0.00349007]
[1728016207964,0.163959,61296.0,61295.0,0.00649007]
[1728016208174,0.163959,61296.0,61295.0,0.00849007]
[1728016208405,0.23745922,61296.0,61295.0,0.00849007]
[1728016208832,0.36210347,61296.0,61295.0,0.00849007]
[1728016209284,0.36210347,61296.0,61295.0,0.00649007]
[1728016209509,0.36210347,61296.0,61295.0,0.00349007]
[1728016209733,0.36210347,61296.0,61295.0,0.00849007]
[1728016209968,0.36210347,61296.0,61295.0,0.00649007]
[1728016210658,0.38768349,61296.0,61295.0,0.00649007]
[1728016211123,0.38768349,61296.0,61295.0,0.00349007]
[1728016211364,0.38768349,61296.0,61295.0,0.00449007]
[1728016211842,0.38768349,61296.0,61295.0,0.00349007]
[1728016212292,0.38768349,61296.0,61295.0,0.00449007]
[1728016216381,0.26303924,61296.0,61295.0,0.00449007]
[1728016216617,0.18953902,61296.0,61295.0,0.00449007]
[1728016217354,0.163959,61296.0,61295.0,0.00449007]
[1728016220582,0.18953708,61296.0,61295.0,0.00450913]
[1728016221684,0.163959,61296.0,61295.0,0.00450913]
[1728016221899,0.000817,61296.0,61295.0,0.08040913]
[1728016222140,0.000817,61296.0,61295.0,0.36819838]
[1728016222612,0.000817,61296.0,61295.0,0.24355413]
[1728016222891,0.000817,61296.0,61295.0,0.36819838]
[1728016223108,0.000817,61296.0,61295.0,0.24355413]
[1728016223341,0.000817,61296.0,61295.0,0.24255413]
[1728016223585,0.000817,61296.0,61295.0,0.24355413]
[1728016224073,0.000817,61296.0,61295.0,0.24255413]
[1728016224532,0.000817,61296.0,61295.0,0.37619838]
[1728016224760,0.000817,61296.0,61295.0,0.38519838]
[1728016225454,0.000817,61296.0,61295.0,0.26055413]
[1728016226110,0.000817,61296.0,61295.0,0.38519838]
[1728016229207,0.000817,61296.0,61295.0,0.48099838]
[1728016230081,0.000817,61296.0,61295.0,0.73518509]
[1728016230296,0.000717,61296.0,61295.0,0.73718509]
[1728016230512,0.000318,61301.0,61300.0,0.358932]
[1728016230750,0.000318,61301.0,61300.0,0.72266296]
[1728016230966,0.000218,61301.0,61300.0,0.72615764]
[1728016231176,0.000118,61301.0,61300.0,0.60151339]
[1728016231398,0.000236,61303.0,61302.0,0.239026]
[1728016231822,3.6e-05,61303.0,61302.0,0.24252005]
[1728016232040,3.6e-05,61304.0,61302.0,0.07939405]
[1728016232269,0.24421824,61319.0,61317.0,0.163086]
[1728016232478,0.000818,61321.0,61318.0,0.166572]
[1728016232683,0.000718,61321.0,61318.0,0.166572]
[1728016232890,0.000618,61321.0,61318.0,0.166572]
[1728016233109,0.162892,61322.0,61318.0,0.166572]
[1728016233318,0.28771425,61324.0,61320.0,0.163076]
[1728016233522,0.1,61326.0,61320.0,0.163077]
[1728016233738,0.162869,61324.0,61321.0,0.00348805]
[1728016233950,0.18773587,61324.0,61321.0,0.00348805]
[1728016234390,0.18773587,61324.0,61320.0,0.002]
[1728016234391,0.02556687,61324.0,61320.0,0.002]
[1728016234606,0.02526687,61324.0,61323.0,0.16307]
[1728016234807,0.02526687,61324.0,61321.0,0.16656205]
[1728016235018,0.02526687,61324.0,61323.0,0.00348742]
[1728016235234,0.02526687,61324.0,61322.0,0.16656074]
[1728016235438,0.02608587,61324.0,61323.0,0.00348742]
[1728016236099,0.02608587,61324.0,61321.0,0.165075]
[1728016236300,0.02608587,61324.0,61321.0,0.163075]
[1728016236503,0.02608587,61324.0,61323.0,0.00748742]
[1728016236709,0.02608587,61324.0,61323.0,0.004]
[1728016237158,0.02608587,61324.0,61323.0,0.00348742]
[1728016237923,0.02608587,61324.0,61321.0,0.167074]
[1728016238140,0.02608587,61324.0,61323.0,0.00748742]
[1728016238366,0.02608587,61324.0,61323.0,0.004]
[1728016238814,0.02608587,61324.0,61323.0,0.00748742]
[1728016240158,0.000819,61324.0,61323.0,0.00748742]
[1728016240609,0.000819,61324.0,61323.0,0.008]
[1728016240817,0.000819,61324.0,61323.0,0.01146582]
[1728016241944,0.000819,61324.0,61323.0,0.08746582]
[1728016242170,0.000819,61324.0,61323.0,0.25053582]
[1728016242434,0.000819,61324.0,61323.0,0.34463582]
[1728016244964,0.000819,61324.0,61323.0,0.46928007]
[1728016246188,0.000819,61324.0,61323.0,0.46528007]
[1728016246435,0.000819,61324.0,61323.0,0.46828007]
[1728016246673,0.000819,61324.0,61323.0,0.34363582]
[1728016246923,0.000819,61324.0,61323.0,0.35063582]
[1728016247167,0.000819,61324.0,61323.0,0.34363582]
[1728016247403,0.000819,61324.0,61323.0,0.35763582]
[1728016247642,0.000819,61324.0,61323.0,0.35063582]
[1728016247882,0.000819,61324.0,61323.0,0.36363582]
[1728016250767,0.000819,61324.0,61323.0,0.10646582]
[1728016251001,0.000819,61324.0,61323.0,0.26953582]
[1728016251238,0.000819,61324.0,61323.0,0.19353582]
[1728016251673,0.000819,61324.0,61323.0,0.03046582]
[1728016252096,0.000819,61324.0,61323.0,0.19353582]
[1728016254383,0.000819,61324.0,61323.0,0.03046582]
[1728016254595,0.000819,61324.0,61323.0,0.19353582]
[1728016259504,0.000819,61324.0,61323.0,0.19517182]
[1728016264932,0.000819,61324.0,61323.0,0.28837182]
[1728016267310,0.000819,61324.0,61323.0,0.36617182]
[1728016274426,0.000819,61324.0,61323.0,0.27297182]
[1728016276921,0.000819,61324.0,61323.0,0.19517182]
[1728016277199,0.183419,61324.0,61323.0,0.03210182]
[1728016277427,0.346487,61324.0,61323.0,0.028636]
[1728016277649,0.42476155,61324.0,61323.0,0.028636]
[1728016277865,0.49184822,61324.0,61323.0,0.028636]
[1728016278321,0.369487,61324.0,61323.0,0.015636]
[1728016278570,0.369487,61324.0,61323.0,0.021636]
[1728016278812,0.59184822,61324.0,61323.0,0.021636]
[1728016279052,0.6181815,61324.0,61323.0,0.021636]
[1728016279299,0.471487,61324.0,61323.0,0.021636]
[1728016279786,0.471487,61324.0,61323.0,0.015636]
[1728016280036,0.471487,61324.0,61323.0,0.001636]
[1728016280541,0.472487,61324.0,61323.0,0.001636]
[1728016280784,0.470487,61324.0,61323.0,0.001636]
[1728016281007,0.471487,61324.0,61323.0,0.001636]
[1728016281481,0.472487,61324.0,61323.0,0.001636]
[1728016281924,0.59278206,61324.0,61323.0,0.001636]
[1728016282668,0.60984895,61324.0,61323.0,0.001636]
[1728016282933,0.58684895,61324.0,61323.0,0.001636]
[1728016283158,0.38055389,61324.0,61323.0,0.001636]
[1728016283382,0.28195389,61324.0,61323.0,0.002636]
[1728016283630,0.01788589,61324.0,61323.0,0.165706]
[1728016283850,0.01788589,61324.0,61323.0,0.002636]
[1728016284078,0.01788589,61324.0,61323.0,0.00470054]
[1728016284079,0.01888589,61324.0,61323.0,0.00470054]
[1728016284319,0.001819,61324.0,61323.0,0.00470054]
[1728016286003,0.001819,61324.0,61323.0,0.16777054]
[1728016286731,0.000819,61324.0,61323.0,0.16777054]
[1728016287228,0.000819,61324.0,61323.0,0.16977054]
[1728016287461,0.000819,61324.0,61323.0,0.00670054]
[1728016287721,0.000819,61324.0,61323.0,0.00770054]
[1728016287722,0.35372185,61324.0,61323.0,0.00770054]
[1728016287996,0.35372185,61324.0,61323.0,0.006636]
[1728016288214,0.47872185,61324.0,61323.0,0.006636]
[1728016288442,0.60094708,61324.0,61323.0,0.006636]
[1728016288670,0.66132185,61324.0,61323.0,0.006636]
[1728016289150,0.66132185,61324.0,61323.0,0.004636]
[1728016289395,0.82450856,61324.0,61323.0,0.004636]
[1728016289617,0.82450856,61324.0,61323.0,0.001636]
[1728016289873,0.82550856,61324.0,61323.0,0.002636]
[1728016290112,0.82550856,61324.0,61323.0,0.001636]
[1728016290329,0.82550856,61324.0,61323.0,0.003636]
[1728016290550,0.82650856,61324.0,61323.0,0.003636]
[1728016290786,0.66232185,61324.0,61323.0,0.001636]
[1728016291018,0.66332185,61324.0,61323.0,0.003636]
[1728016291494,0.66232185,61324.0,61323.0,0.003636]
[1728016291735,0.66032185,61324.0,61323.0,0.003636]
[1728016291971,0.66232185,61324.0,61323.0,0.003636]
[1728016292623,0.66332185,61324.0,61323.0,0.004636]
[1728016292844,0.66332185,61324.0,61323.0,0.003636]
[1728016293320,0.78544247,61324.0,61323.0,0.004636]
[1728016296333,0.66332185,61324.0,61323.0,0.004636]
[1728016296522,0.82415963,61324.0,61323.0,0.004636]
[1728016296758,0.70203901,61324.0,61323.0,0.004636]
[1728016297211,0.78538365,61324.0,61323.0,0.004636]
[1728016297766,0.78038365,61324.0,61323.0,0.004636]
[1728016299289,0.65832185,61324.0,61323.0,0.004636]
[1728016299753,0.40055389,61324.0,61323.0,0.004636]
[1728016300474,0.383487,61324.0,61323.0,0.004636]
[1728016300921,0.385487,61324.0,61323.0,0.004636]
[1728016301143,0.54867371,61324.0,61323.0,0.004636]
[1728016301382,0.45870115,61324.0,61323.0,0.004636]
[1728016301636,0.45670115,61324.0,61323.0,0.004636]
[1728016301855,0.383487,61324.0,61323.0,0.004636]
[1728016302583,0.07321415,61326.0,61323.0,0.002636]
[1728016302805,0.001,61324.0,61323.0,0.002636]
[1728016303031,0.001,61324.0,61323.0,0.00672442]
[1728016303264,0.001,61324.0,61323.0,0.16979442]
[1728016303498,0.001,61324.0,61323.0,0.16879442]
[1728016303747,0.163059,61328.0,61323.0,0.16779442]
[1728016304013,0.001,61326.0,61325.0,0.163065]
[1728016304476,0.001,61326.0,61325.0,0.16615279]
[1728016305426,0.163053,61330.0,61325.0,0.16615279]
[1728016306352,0.163053,61330.0,61325.0,0.17015279]
[1728016306591,0.163053,61330.0,61325.0,0.16615279]
[1728016307050,0.000818,61326.0,61325.0,0.16615279]
[1728016308726,0.000818,61326.0,61325.0,0.17015279]
[1728016309585,0.000818,61326.0,61325.0,0.00708779]
[1728016310242,0.000818,61326.0,61325.0,0.01108779]
[1728016311359,0.16388,61326.0,61325.0,0.01108779]
[1728016311575,0.000818,61326.0,61325.0,0.01108779]
[1728016313638,0.35371485,61326.0,61325.0,0.01108779]
[1728016314308,0.35371485,61326.0,61325.0,0.008]
[1728016314521,0.35371485,61326.0,61325.0,0.004]
[1728016314760,0.163068,61324.0,61323.0,0.001636]
[1728016316634,0.163068,61324.0,61323.0,0.00570802]
[1728016317322,0.163068,61324.0,61323.0,0.00670802]
[1728016317982,0.163068,61324.0,61323.0,0.00570802]
[1728016318202,0.163068,61324.0,61323.0,0.00670802]
[1728016321387,0.19529379,61324.0,61323.0,0.00670802]
[1728016321632,0.261068,61324.0,61323.0,0.003636]
[1728016322076,0.261068,61324.0,61323.0,0.002636]
[1728016322320,0.262068,61324.0,61323.0,0.001636]
[1728016322537,0.26100582,61324.0,61323.0,0.001636]
[1728016323001,0.26200582,61324.0,61323.0,0.001636]
[1728016323742,0.163105,61310.0,61309.0,0.24468224]
[1728016323968,0.35293985,61310.0,61309.0,0.24468224]
[1728016324187,0.35293985,61310.0,61309.0,0.24761134]
[1728016324401,0.35293985,61310.0,61303.0,0.0778]
[1728016324402,0.18983485,61310.0,61303.0,0.0778]
[1728016324656,0.163105,61310.0,61309.0,0.0029291]
[1728016324887,0.098,61313.0,61303.0,0.0778]
[1728016325116,0.35295585,61304.0,61303.0,0.0778]
[1728016326664,0.35295585,61304.0,61303.0,0.0818]
[1728016327143,0.35295585,61304.0,61303.0,0.004]
[1728016328070,0.35295585,61304.0,61303.0,0.008]
[1728016328304,0.48382811,61304.0,61303.0,0.008]
[1728016328533,0.48382811,61304.0,61303.0,0.004]
[1728016328755,0.023,61303.0,61300.0,0.001636]
[1728016328976,0.163129,61301.0,61300.0,0.001636]
[1728016331099,0.169129,61301.0,61300.0,0.001636]
[1728016331323,0.171129,61301.0,61300.0,0.001636]
[1728016332322,0.165129,61301.0,61300.0,0.001636]
[1728016332560,0.166129,61301.0,61300.0,0.001636]
[1728016332800,0.164129,61301.0,61300.0,0.001636]
[1728016333031,0.163129,61301.0,61300.0,0.001636]
[1728016333493,0.164129,61301.0,61300.0,0.001636]
[1728016334195,0.166129,61301.0,61300.0,0.001636]
[1728016334426,0.166129,61301.0,61300.0,0.081136]
[1728016334955,0.164129,61301.0,61300.0,0.081136]
[1728016335188,0.163129,61301.0,61300.0,0.081136]
[1728016335415,0.165129,61301.0,61300.0,0.081136]
[1728016335651,0.164129,61301.0,61300.0,0.081136]
[1728016335890,0.166129,61301.0,61300.0,0.081136]
[1728016336168,0.165129,61301.0,61300.0,0.081136]
[1728016336404,0.003,61301.0,61300.0,0.081136]
[1728016336643,0.003,61301.0,61300.0,0.244268]
[1728016336886,0.002,61301.0,61300.0,0.2472126]
[1728016337367,0.163112,61308.0,61300.0,0.0850806]
[1728016337605,0.163112,61308.0,61303.0,0.163122]
[1728016337857,0.163114,61307.0,61303.0,0.163122]
[1728016338096,0.163117,61306.0,61304.0,0.00296512]
[1728016338339,0.326207,61311.0,61305.0,0.163118]
[1728016338575,0.32622,61309.0,61303.0,0.163123]
[1728016338828,0.163116,61306.0,61303.0,0.001]
[1728016339059,0.163116,61306.0,61302.0,0.163125]
[1728016340500,0.163116,61306.0,61304.0,0.004]
[1728016340687,0.326232,61306.0,61302.0,0.004]
[1728016340938,0.163124,61303.0,61302.0,0.008]
[1728016341364,0.16312,61305.0,61302.0,0.008]
[1728016341628,0.16312,61305.0,61302.0,0.004]
[1728016341869,0.16312,61305.0,61301.0,0.163129]
[1728016342114,0.16312,61305.0,61304.0,0.004]
[1728016342808,0.16312,61305.0,61301.0,0.163129]
[1728016342814,0.16312,61305.0,61302.0,0.001]
[1728016343287,0.16312,61305.0,61301.0,0.163129]
[1728016343500,0.16312,61305.0,61304.0,0.002]
[1728016344651,0.16312,61305.0,61304.0,0.003]
[1728016345374,0.16312,61305.0,61304.0,0.001]